Workbook

Sheet Diba
A3: estat d'execució del pressupost | K3: exercici corrent
A4: resum per capítols | K4: 31 de març de 2022
A7: ingressos
A9: capítol pressupostari | D9: Pressupost inicial | E9: Modificacions | F9: Pressupost actual | G9: Drets reconeguts nets | H9: Recaptació | I9: Pendent de cobrament | K9: % (D)/(C)
D10: (A) | E10: (B) | F10: (C) = (A)+(B) | G10: (D) | H10: (E) | I10: (F) = (D)+(E) | K10: (G)
A11: 1 | B11: Impostos directes | D11: 152884500 | E11: 0 | F11: 152884500 | G11: 35562853.89 | H11: 35087849.69 | I11: 475004.2 | K11: =IF(F11=0,0,G11/F11) -> 0.2326125532
A12: 2 | B12: Impostos indirectes | D12: 112763000 | E12: 0 | F12: 112763000 | G12: 24718871.07 | H12: 24718871.07 | I12: 0 | K12: 0.2192108322
A13: 3 | B13: Taxes i altres ingressos | D13: 4441700 | E13: 0 | F13: 4441700 | G13: 1508504.86 | H13: 890254.31 | I13: 618250.55 | K13: 0.3396233109
A14: 4 | B14: Transferències corrents | D14: 594247950 | E14: 21132325.11 | F14: 615380275.1 | G14: 152912832.1 | H14: 152773958.3 | I14: 138873.85 | K14: 0.2484851047
A15: 5 | B15: Ingressos patrimonials | D15: 2499250 | E15: 0 | F15: 2499250 | G15: 835447.33 | H15: 466860.97 | I15: 368586.36 | K15: 0.3342792158
B16: Ingressos corrents (I1) | D16: =SUM(D11:D15) -> 866836400 | E16: 21132325.11 | F16: 887968725.1 | G16: =SUM(G11:G15) -> 215538509.3 | H16: =SUM(H11:H15) -> 213937794.3 | I16: 1600714.96 | K16: 0.2427320953
A17: 6 | B17: Alienació de béns | D17: 0 | E17: 0 | F17: 0 | G17: 54243.6 | H17: 54243.59 | I17: 0.01 | K17: 0
A18: 7 | B18: Transferències capital | D18: 2993600 | E18: 0 | F18: 2993600 | G18: 451597.56 | H18: 0 | I18: 451597.56 | K18: 0.1508543426
B19: Ingressos de capital (I2) | D19: =D17+D18 -> 2993600 | E19: 0 | F19: 2993600 | G19: =G17+G18 -> 505841.16 | H19: =H17+H18 -> 54243.59 | I19: 451597.57 | K19: 0.1689741983
A20: 8 | B20: Actius financers | D20: 190290000 | E20: 200420175.2 | F20: 390710175.1 | G20: 2069640.61 | H20: 1949640.61 | I20: 120000 | K20: 0.005297124932
A21: 9 | B21: Passius financers | D21: 0 | E21: 0 | F21: 0 | G21: 0 | H21: 0 | I21: 0 | K21: 0
B22: Ingressos financers (I3) | D22: =D20+D21 -> 190290000 | E22: 200420175.2 | F22: 390710175.1 | G22: =G20+G21 -> 2069640.61 | H22: =H20+H21 -> 1949640.61 | I22: 120000 | K22: 0.005297124932
B25: Total d'ingressos | D25: =D16+D19+D22 -> 1060120000 | E25: 221552500.3 | F25: 1281672500 | G25: 218113991 | H25: 215941678.5 | I25: 2172312.53 | K25: =IF(F25=0,0,G25/F25) -> 0.1701791924
A29: despeses
A31: capítol pressupostari | D31: Pressupost inicial | E31: Modificacions | F31: Pressupost actual | G31: Obligacions reconegudes | H31: Pagaments | I31: Pendent de pagament | K31: % (D)/(C)
D32: (A) | E32: (B) | F32: (C) = (A)+(B) | G32: (D) | H32: (E) | I32: (F) = (D)+(E) | K32: (G)
A33: 1 | B33: Despeses de personal | D33: 254397000 | E33: 185619.15 | F33: 254582619.2 | G33: 43529886.29 | H33: 43403734.65 | I33: 126151.64 | K33: =IF(F33=0,0,G33/F33) -> 0.1709853031
A34: 2 | B34: Despeses béns corrents i serveis | D34: 120173500 | E34: 20444123.35 | F34: 140617623.4 | G34: 19644673.9 | H34: 17608542.82 | I34: 2036131.08 | K34: 0.1397027871
A35: 3 | B35: Despeses financeres | D35: 111000 | E35: 0 | F35: 111000 | G35: 33187.34 | H35: 32968.39 | I35: 218.95 | K35: 0.298985045
A36: 4 | B36: Transferències corrents | D36: 258226400 | E36: 87513199.9 | F36: 345739599.9 | G36: 40840914.08 | H36: 36224914.4 | I36: 4615999.68 | K36: 0.1181262259
A37: 5 | B37: Fons de contingència i altres impr. | D37: 3000000 | E37: 0 | F37: 3000000 | G37: 0 | H37: 0 | I37: 0 | K37: =IF(F37=0,0,G37/F37) -> 0
B38: Despeses corrents (D1) | D38: =SUM(D33:D37) -> 635907900 | E38: 108142942.4 | F38: 744050842.4 | G38: 104048661.6 | H38: 97270160.26 | I38: 6778501.35 | K38: 0.1398407954
A39: 6 | B39: Inversions reals | D39: 73410700 | E39: 20269026.68 | F39: 93679726.68 | G39: 9570935.26 | H39: 8468110.67 | I39: 1102824.59 | K39: 0.1021665583
A40: 7 | B40: Transferències capital | D40: 160666400 | E40: 80771368.31 | F40: 241437768.3 | G40: 25971946.12 | H40: 19193917.7 | I40: 6778028.42 | K40: 0.1075720104
B41: Despeses de capital (D2) | D41: =D39+D40 -> 234077100 | E41: 101040395 | F41: 335117495 | G41: 35542881.38 | H41: 27662028.37 | I41: 7880853.01 | K41: 0.1060609545
A42: 8 | B42: Actius financers | D42: 190135000 | E42: 12369162.87 | F42: 202504162.9 | G42: 171588786.8 | H42: 121588786.8 | I42: 50000000 | K42: 0.8473346145
A43: 9 | B43: Passius financers | D43: 0 | E43: 0 | F43: 0 | G43: 0 | H43: 0 | I43: 0 | K43: 0
B44: Despeses financeres (D3) | D44: =D42+D43 -> 190135000 | E44: 12369162.87 | F44: 202504162.9 | G44: 171588786.8 | H44: 121588786.8 | I44: 50000000 | K44: 0.8473346145
B47: ="Total de "&A29 -> Total de despeses | D47: =D38+D41+D44 -> 1060120000 | E47: 221552500.3 | F47: 1281672500 | G47: 311180329.8 | H47: 246520975.4 | I47: 64659354.36 | K47: =IF(F47=0,0,G47/F47) -> 0.2427923902
A51: diferències
A54: en operacions corrents (I1)-(D1) | D54: =D16-D38 -> 230928500 | E54: -87010617.29 | F54: 143917882.7 | G54: 111489847.6 | H54: 116667634 | I54: -5177786.39
A55: en operacions de capital (I2)-(D2) | D55: =D19-D41 -> -231083500 | E55: -101040395 | F55: -332123895 | G55: -35037040.22 | H55: -27607784.78 | I55: -7429255.44
A56: en operacions financeres (I3)-(D3) | D56: =D22-D44 -> 155000 | E56: 188051012.3 | F56: 188206012.3 | G56: -169519146.2 | H56: -119639146.2 | I56: -49880000
B59: ="Total "&A51 -> Total diferències | D59: =D25-D47 -> 0 | E59: 0 | F59: 0 | G59: -93066338.76 | H59: -30579296.93 | I59: -62487041.83
K68: extret el 21/4/2022

Sheet DibaAltres
A3: estat d'execució del pressupost | K3: exercici corrent
A4: resum per capítols | K4: 31 de març de 2022
A7: despeses
A9: capítol pressupostari | D9: Crèdits definitius | E9: Despeses autoritzades | F9: Despeses compromeses | G9: Obligacions reconegudes | H9: Crèdit disponible | I9: Romanents de crèdit | K9: % (C)/(A)
D10: (A) | E10: (B) | F10: (C) | G10: (D) | H10: (E) | I10: (F) = (A)-(D) | K10: (G)
A11: 1 | B11: Despeses de personal | D11: 254582619.2 | E11: 43876303.12 | F11: 43876303.12 | G11: 43529886.29 | H11: 208406316 | I11: 211052732.9 | K11: =IF(D11=0,0,F11/D11) -> 0.1723460277
A12: 2 | B12: Despeses béns corrents i serveis | D12: 140617623.4 | E12: 91563533.62 | F12: 86004825.03 | G12: 19644673.9 | H12: 43746995.89 | I12: 120972949.4 | K12: =IF(D12=0,0,F12/D12) -> 0.6116219502
A13: 3 | B13: Despeses financeres | D13: 111000 | E13: 33187.34 | F13: 33187.34 | G13: 33187.34 | H13: 77812.66 | I13: 77812.66 | K13: 0.298985045
A14: 4 | B14: Transferències corrents | D14: 345739599.9 | E14: 294679197.2 | F14: 248367272.3 | G14: 40840914.08 | H14: 50929913.66 | I14: 304898685.8 | K14: 0.7183651291
A15: 5 | B15: Fons de contingència i altres impr. | D15: 3000000 | E15: 0 | F15: 0 | G15: 0 | H15: 3000000 | I15: 3000000 | K15: =IF(D15=0,0,F15/D15) -> 0
B16: Despeses corrents (D1) | D16: =SUM(D11:D15) -> 744050842.4 | E16: 430152221.3 | F16: 378281587.8 | G16: 104048661.6 | H16: 306161038.2 | I16: 640002180.8 | K16: 0.5084082515
A17: 6 | B17: Inversions reals | D17: 93679726.68 | E17: 55453230.05 | F17: 40019303.96 | G17: 9570935.26 | H17: 35142077.76 | I17: 84108791.42 | K17: 0.4271927916
A18: 7 | B18: Transferències capital | D18: 241437768.3 | E18: 211119164.1 | F18: 193299244.3 | G18: 25971946.12 | H18: 30311795.65 | I18: 215465822.2 | K18: 0.800617259
B19: Despeses de capital (D2) | D19: =D17+D18 -> 335117495 | E19: 266572394.1 | F19: 233318548.2 | G19: 35542881.38 | H19: 65453873.41 | I19: 299574613.6 | K19: 0.696229089
A20: 8 | B20: Actius financers | D20: 202504162.9 | E20: 185677231.9 | F20: 176677231.9 | G20: 171588786.8 | H20: 16826930.97 | I20: 30915376.08 | K20: 0.872462222
A21: 9 | B21: Passius financers | D21: 0 | E21: 0 | F21: 0 | G21: 0 | H21: 0 | I21: 0 | K21: 0
B22: Despeses financeres (D3) | D22: =D20+D21 -> 202504162.9 | E22: 185677231.9 | F22: 176677231.9 | G22: 171588786.8 | H22: 16826930.97 | I22: 30915376.08 | K22: 0.872462222
B25: ="Total de "&A7 -> Total de despeses | D25: =D16+D19+D22 -> 1281672500 | E25: 882401847.4 | F25: 788277368 | G25: 311180329.8 | H25: 388441842.6 | I25: 970492170.5 | K25: =IF(D25=0,0,F25/D25) -> 0.6150380599
K70: extret el 21/4/2022

Sheet GrDespeses
L1: Intervenció General
L2: 31 de març de 2022
L84: extret el 21/4/2022

Sheet GrIngressos
L1: Intervenció General
L2: 31 de març de 2022
L84: extret el 21/4/2022

Sheet CGrafics
G1: 31 de març de 2022
A3: calculs per gràfics del pressupost actual
A6: ingressos
B8: Previsions inicials | C8: Previsions definitives | D8: Drets reconeguts nets | E8: Cobraments realitzats | F8: Pendent de cobrament
B9: 1060.12 | C9: 1281.6725 | D9: 218.113991 | E9: 215.9416785 | F9: 2.17231253
A12: drets reconeguts nets
B14: 1 | C14: 2 | D14: 3 | E14: 4 | F14: 5 | G14: 6 | H14: 7 | I14: 8 | J14: 9
A15: drets reconeguts nets | B15: 35562853.89 | C15: 24718871.07 | D15: 1508504.86 | E15: 152912832.1 | F15: 835447.33 | G15: 54243.6 | H15: 451597.56 | I15: 2069640.61 | J15: 0
A16: previsions definitives | B16: 152884500 | C16: 112763000 | D16: 4441700 | E16: 615380275.1 | F16: 2499250 | G16: 0 | H16: 2993600 | I16: 390710175.1 | J16: 0
A17: drets milions | B17: 35.56285389 | C17: 24.71887107 | D17: 1.50850486 | E17: 152.9128321 | F17: 0.83544733 | G17: 0.0542436 | H17: 0.45159756 | I17: 2.06964061 | J17: 0
A18: definitives milions | B18: 152.8845 | C18: 112.763 | D18: 4.4417 | E18: 615.3802751 | F18: 2.49925 | G18: 0 | H18: 2.9936 | I18: 390.7101751 | J18: 0
A21: ingressos nets
A23: recaptació neta | B23: 215.9416785
A24: pendent de cobrament | B24: 2.17231253
A27: despeses
B29: Crèdits inicials | C29: Crèdits definitius | D29: Disposicions | E29: Obligacions reconegudes | F29: Pagaments realitzats | G29: Pendent de pagament
B30: 1060.12 | C30: 1281.6725 | D30: 788.277368 | E30: 311.1803298 | F30: 246.5209754 | G30: 64.65935436
A33: obligacions reconegudes
B35: 1 | C35: 2 | D35: 3 | E35: 4 | F35: 5 | G35: 6 | H35: 7 | I35: 8 | J35: 9
A36: despeses compromeses | B36: 43876303.12 | C36: 86004825.03 | D36: 33187.34 | E36: 248367272.3 | F36: 0 | G36: 40019303.96 | H36: 193299244.3 | I36: 176677231.9 | J36: 0
A37: crèdits definitius | B37: 254582619.2 | C37: 140617623.4 | D37: 111000 | E37: 345739599.9 | F37: 3000000 | G37: 93679726.68 | H37: 241437768.3 | I37: 202504162.9 | J37: 0
A38: despeses compr. milions | B38: 43.87630312 | C38: 86.00482503 | D38: 0.03318734 | E38: 248.3672723 | F38: 0 | G38: 40.01930396 | H38: 193.2992443 | I38: 176.6772319 | J38: 0
A39: crèdits definitius milions | B39: 254.5826192 | C39: 140.6176234 | D39: 0.111 | E39: 345.7395999 | F39: 3 | G39: 93.67972668 | H39: 241.4377683 | I39: 202.5041629 | J39: 0
A42: pagaments
A44: pagaments | B44: 246.5209754
A45: pendent de pagament | B45: 64.65935436
